fUST/lending_fUST_20240912
["ID","MTS","AMOUNT","RATE_DAILY","PERIOD"]
[337818307,1726131062390,-10000.0,0.00017534,2]
[337818308,1726131062399,-551.17,0.00017534,2]
[337818309,1726131062409,-1009.79,0.00017534,2]
[337818310,1726131062418,-10000.0,0.00017534,2]
[337818311,1726131062427,-10000.0,0.00017534,2]
[337818312,1726131062436,-500.0,0.00017534,2]
[337818313,1726131062446,-10000.0,0.00017534,2]
[337818314,1726131062455,-500.0,0.00017534,2]
[337818315,1726131062464,-513.87,0.00017534,2]
[337818316,1726131062473,-800.64,0.00017534,2]
[337818317,1726131062483,-935.62,0.00017534,2]
[337818318,1726131062492,-500.0,0.00017534,2]
[337818319,1726131062502,-500.0,0.00017534,2]
[337818320,1726131062513,-659.81,0.00017534,2]
[337818321,1726131062522,-500.0,0.00017534,2]
[337818322,1726131062531,-500.0,0.00017534,2]
[337818323,1726131062540,-500.0,0.00017534,2]
[337818324,1726131062549,-500.0,0.00017534,2]
[337818325,1726131062559,-500.0,0.00017534,2]
[337818326,1726131062568,-500.0,0.00017534,2]
[337818327,1726131062577,-500.0,0.00017534,2]
[337818328,1726131062586,-500.0,0.00017534,2]
[337818329,1726131062595,-500.0,0.00017534,2]
[337818330,1726131062604,-618.89,0.00017534,2]
[337818331,1726131062613,-667.82,0.00017534,2]
[337818332,1726131062623,-153.0,0.00017534,2]
[337818333,1726131062632,-153.0,0.00017534,2]
[337818334,1726131062643,-153.0,0.00017534,2]
[337818335,1726131062652,-153.0,0.00017534,2]
[337818336,1726131062662,-501.51600517,0.00017742,2]
[337818337,1726131062672,-662.31002438,0.00017742,2]
[337818338,1726131062682,-1000.0,0.00017742,2]
[337818339,1726131062693,-1000.0,0.00017742,2]
[337818340,1726131062702,-1000.0,0.00017742,2]
[337818341,1726131062712,-500.0,0.00017742,2]
[337818342,1726131062721,-1000.0,0.00017742,2]
[337818343,1726131062731,-1000.0,0.00017742,2]
[337818344,1726131062740,-501.0719254,0.00017742,2]
[337818345,1726131062749,-500.0,0.00017797,2]
[337818346,1726131062761,-500.0,0.00017797,2]
[337818347,1726131062770,-500.0,0.00017807,2]
[337818348,1726131062779,-500.0,0.00017807,2]
[337818349,1726131062788,-500.0,0.00017807,2]
[337818350,1726131062797,-500.0,0.00017807,2]
[337818351,1726131062806,-500.0,0.00017808,2]
[337818352,1726131062816,-500.0,0.00017808,2]
[337818353,1726131062826,-500.0,0.00017808,2]
[337818354,1726131062835,-500.0,0.00017808,2]
[337818355,1726131062845,-500.0,0.00017808,2]
[337818356,1726131062854,-500.0,0.00017808,2]
[337818357,1726131062863,-500.0,0.00017808,2]
[337818358,1726131062873,-625.53,0.00017808,2]
[337818359,1726131062882,-614.29,0.00017808,2]
[337818360,1726131062892,-322.97,0.00017808,2]
[337818361,1726131062903,-536.87,0.00017808,2]
[337818362,1726131062914,-500.0,0.00017808,2]
[337818363,1726131062924,-817.17,0.00017808,2]
[337818364,1726131062937,-500.0,0.00017808,2]
[337818365,1726131062946,-500.0,0.00017808,2]
[337818366,1726131062956,-500.0,0.00017808,2]
[337818367,1726131062966,-617.64,0.00017808,2]
[337818368,1726131062978,-1279.9,0.00017808,2]
[337818369,1726131062987,-500.0,0.00017808,2]
[337818370,1726131062997,-793.33,0.00017808,2]
[337818371,1726131063008,-296.81,0.00017808,2]
[337818372,1726131063017,-500.0,0.00017808,2]
[337818373,1726131063026,-500.0,0.00017808,2]
[337818374,1726131063036,-500.0,0.00017808,2]
[337818375,1726131063045,-500.0,0.00017808,2]
[337818376,1726131063054,-500.0,0.00017808,2]
[337818377,1726131063064,-615.172887,0.00017808,2]
[337818378,1726131063073,-151.0,0.00017808,2]
[337818379,1726131063083,-500.0,0.00017808,2]
[337818380,1726131063094,-615.172887,0.00017808,2]
[337818381,1726131063105,-151.0,0.00017808,2]
[337818382,1726131063115,-500.0,0.00017808,2]
[337818383,1726131063124,-500.0,0.00017808,2]
[337818384,1726131063133,-599.07,0.00017808,2]
[337818385,1726131063143,-594.71,0.00017808,2]
[337818386,1726131063153,-500.0,0.00017808,2]
[337818387,1726131063162,-618.35,0.00017808,2]
[337818388,1726131063172,-302.45631,0.00017808,2]
[337818389,1726131063181,-302.45631,0.00017808,2]
[337818390,1726131063191,-745.01,0.00017808,2]
[337818391,1726131063201,-580.85,0.00017808,2]
[337818392,1726131063210,-536.58639989,0.00017808,2]
[337818393,1726131063220,-601.07,0.00017808,2]
[337818394,1726131063229,-779.69,0.00017808,2]
[337818395,1726131063239,-500.0,0.00017808,2]
[337818396,1726131063249,-379.306066,0.00017808,2]
[337818397,1726131063259,-379.306066,0.00017808,2]
[337818398,1726131063269,-506.14,0.00017808,2]
[337818399,1726131063279,-559.287003,0.00017808,2]
[337818400,1726131063288,-500.0,0.00017808,2]
[337818401,1726131063298,-559.287003,0.00017808,2]
[337818402,1726131063307,-697.699414,0.00017808,2]
[337818403,1726131063317,-500.0,0.00017808,2]
[337818404,1726131063327,-697.699414,0.00017808,2]
[337818405,1726131063336,-296.49794161,0.00017808,2]
[337818406,1726131063346,-1106.33,0.00017808,2]
[337818407,1726131063355,-151.0,0.00017808,2]
[337818408,1726131063365,-500.0,0.00017808,2]
[337818409,1726131063375,-593.12453916,0.00017808,2]
[337818410,1726131063384,-500.0,0.00017808,2]
[337818411,1726131063394,-151.0,0.00017808,2]
[337818412,1726131063404,-151.0,0.00017808,2]
[337818413,1726131063413,-500.0,0.00017808,2]
[337818414,1726131063423,-151.0,0.00017808,2]
[337818415,1726131063433,-500.0,0.00017808,2]
[337818416,1726131063442,-408.480547,0.00017808,2]
[337818417,1726131063452,-500.0,0.00017808,2]
[337818418,1726131063462,-408.480547,0.00017808,2]
[337818419,1726131063472,-843.199947,0.00017808,2]
[337818420,1726131063482,-843.199947,0.00017808,2]
[337818421,1726131063492,-151.0,0.00017808,2]
[337818422,1726131063501,-500.0,0.00017808,2]
[337818423,1726131063518,-500.0,0.00017808,2]
[337818424,1726131063527,-582.35,0.00017808,2]
[337818425,1726131063537,-500.0,0.00017808,2]
[337818426,1726131063547,-151.0,0.00017808,2]
[337818427,1726131063557,-760.99,0.00017808,2]
[337818428,1726131063567,-299.70390236,0.00017808,2]
[337818429,1726131063576,-762.35,0.00017808,2]
[337818430,1726131063586,-500.0,0.00017808,2]
[337818431,1726131063596,-738.28,0.00017808,2]
[337818432,1726131063607,-500.0,0.00017808,2]
[337818433,1726131063616,-500.0,0.00017808,2]
[337818434,1726131063626,-292.42957566,0.00017808,2]
[337818435,1726131063636,-7681.4,0.00017808,2]
[337818436,1726131063646,-613.21,0.00017808,2]
[337818437,1726131063657,-500.0,0.00017808,2]
[337818438,1726131063666,-641.6,0.00017808,2]
[337818439,1726131063676,-500.0,0.00017808,2]
[337818440,1726131063685,-500.0,0.00017808,2]
[337818441,1726131063694,-500.0,0.00017808,2]
[337818442,1726131063704,-500.0,0.00017808,2]
[337818443,1726131063714,-697.579169,0.00017808,2]
[337818444,1726131063724,-151.0,0.00017808,2]
[337818445,1726131063733,-500.0,0.00017808,2]
[337818446,1726131063742,-715.52,0.00017808,2]
[337818447,1726131063752,-151.0,0.00017808,2]
[337818448,1726131063764,-500.0,0.00017808,2]
[337818449,1726131063775,-501.1924522,0.00017808,2]
[337818450,1726131063784,-582.64,0.00017808,2]
[337818451,1726131063794,-559.53,0.00017808,2]
[337818452,1726131063804,-697.579169,0.00017808,2]
[337818453,1726131063813,-592.34,0.00017808,2]
[337818454,1726131063823,-500.0,0.00017808,2]
[337818455,1726131063833,-500.0,0.00017808,2]
[337818456,1726131063843,-500.0,0.00017808,2]
[337818457,1726131063852,-500.0,0.00017808,2]
[337818458,1726131063862,-629.47,0.00017808,2]
[337818459,1726131063872,-500.0,0.00017808,2]
[337818460,1726131063881,-500.0,0.00017808,2]
[337818461,1726131063892,-151.0,0.00017808,2]
[337818462,1726131063902,-500.0,0.00017808,2]
[337818463,1726131063913,-500.0,0.00017808,2]
[337818464,1726131063924,-500.0,0.00017808,2]
[337818465,1726131063934,-500.0,0.00017808,2]
[337818466,1726131063944,-500.0,0.00017808,2]
[337818467,1726131063954,-500.0,0.00017808,2]
[337818468,1726131063964,-500.0,0.00017808,2]
[337818469,1726131063974,-500.0,0.00017808,2]
[337818470,1726131063984,-500.0,0.00017808,2]
[337818471,1726131063995,-653.34,0.00017808,2]
[337818472,1726131064005,-5916.495582,0.00017808,2]
[337818473,1726131064016,-675.38,0.00017808,2]
[337818474,1726131064027,-500.0,0.00017808,2]
[337818475,1726131064037,-5916.495582,0.00017808,2]
[337818476,1726131064047,-807.1,0.00017808,2]
[337818477,1726131064056,-787.31,0.00017808,2]
[337818478,1726131064067,-500.0,0.00017808,2]
[337818479,1726131064076,-500.0,0.00017808,2]
[337818480,1726131064085,-262.84408514,0.00017808,2]
[337818481,1726131064095,-500.0,0.00017808,2]
[337818482,1726131064108,-500.0,0.00017808,2]
[337818483,1726131064117,-1393.23,0.00017808,2]
[337818484,1726131064128,-500.0,0.00017808,2]
[337818485,1726131064138,-734.5,0.00017808,2]
[337818486,1726131064149,-541.1,0.00017808,2]
[337818487,1726131064158,-325.95,0.00017808,2]
[337818488,1726131064168,-500.0,0.00017808,2]
[337818489,1726131064177,-719.64,0.00017808,2]
[337818490,1726131064188,-690.44,0.00017808,2]
[337818491,1726131064197,-862.19,0.00017808,2]
[337818492,1726131064207,-500.0,0.00017808,2]
[337818493,1726131064218,-516.92,0.00017808,2]
[337818494,1726131064229,-720.11,0.00017808,2]
[337818495,1726131064239,-4891.15,0.00017808,2]
[337818496,1726131064248,-751.57,0.00017808,2]
[337818497,1726131064259,-686.93,0.00017808,2]
[337818498,1726131064270,-1101.98,0.00017808,2]
[337818499,1726131064281,-500.0,0.00017808,2]
[337818500,1726131064291,-505.50672378,0.00017808,2]
[337818501,1726131064302,-500.0,0.00017808,2]
[337818502,1726131064313,-500.0,0.00017808,2]
[337818503,1726131064322,-500.0,0.00017808,2]
[337818504,1726131064332,-610.17,0.00017808,2]
[337818505,1726131064342,-503.70628264,0.00017808,2]
[337818506,1726131064352,-670.2,0.00017808,2]
[337818507,1726131064361,-1053.58,0.00017808,2]
[337818508,1726131064372,-3990.07,0.00017808,2]
[337818509,1726131064382,-8996.43,0.00017808,2]
[337818510,1726131064391,-500.0,0.00017808,2]
[337818511,1726131064402,-1532.76,0.00017808,2]
[337818512,1726131064412,-551.17,0.00017808,2]
[337818513,1726131064421,-1009.79,0.00017808,2]
[337818514,1726131064431,-500.0,0.00017808,2]
[337818515,1726131064441,-500.0,0.00017808,2]
[337818516,1726131064450,-513.87,0.00017808,2]
[337818517,1726131064460,-800.64,0.00017808,2]
[337818518,1726131064469,-935.62,0.00017808,2]
[337818519,1726131064479,-500.0,0.00017808,2]
[337818520,1726131064489,-500.0,0.00017808,2]
[337818521,1726131064498,-659.81,0.00017808,2]
[337818522,1726131064507,-500.0,0.00017808,2]
[337818523,1726131064519,-513.81,0.00017808,2]
[337818524,1726131064529,-500.0,0.00017808,2]
[337818525,1726131064539,-500.0,0.00017808,2]
[337818526,1726131064551,-500.0,0.00017808,2]
[337818527,1726131064561,-352.68,0.00017808,2]
[337818528,1726131064572,-500.0,0.00017808,2]
[337818529,1726131064582,-500.0,0.00017808,2]
[337818530,1726131064591,-618.89,0.00017808,2]
[337818531,1726131064601,-420.0,0.00017824,2]
[337818532,1726131064611,-502.97725022,0.00017842,2]
[337818533,1726131064620,-1000.0,0.00017842,2]
[337818534,1726131064629,-1000.0,0.00017842,2]
[337818535,1726131064638,-500.04927649,0.00017842,2]
[337818536,1726131064648,-642.98791827,0.00017842,2]
[337818537,1726131064658,-500.0,0.00017872,2]
[337818538,1726131064668,-14607.2719817,0.000179,2]
[337818539,1726131064677,-14607.27198169,0.000179,2]
[337818540,1726131064688,-14607.27198169,0.000179,2]
[337818541,1726131064698,-4484.83158685,0.000179,2]
[337818542,1726131064709,-4484.83158682,0.000179,2]
[337818543,1726131064719,-4484.83158682,0.000179,2]
[337818544,1726131064729,-4484.83158682,0.000179,2]
[337818545,1726131064738,-151.0,0.000179,2]
[337818546,1726131064748,-151.0,0.000179,2]
[337818547,1726131064759,-785.260894,0.000179,2]
[337818548,1726131064768,-785.260894,0.000179,2]
[337818549,1726131064777,-151.0,0.000179,2]
[337818550,1726131064786,-211.419149,0.000179,2]
[337818551,1726131064796,-211.419149,0.000179,2]
[337818552,1726131064806,-379.855255,0.000179,2]
[337818553,1726131064818,-379.855255,0.000179,2]
[337818554,1726131064828,-151.0,0.000179,2]
[337818555,1726131064838,-10000.0,0.000179,2]
[337818556,1726131064849,-10000.0,0.000179,2]
[337818557,1726131064858,-10000.0,0.000179,2]
[337818558,1726131064868,-10000.0,0.000179,2]
[337818559,1726131064877,-420.0,0.00017938,2]
[337818560,1726131064887,-5461.94764664,0.00017996,2]
[337818561,1726131064896,-509.12685801,0.00018081,2]
[337818562,1726131064908,-849.41,0.00018082,2]
[337818563,1726131064918,-216.69527669,0.00018082,2]
[337818564,1726131064929,-500.0,0.00018082,2]
[337818565,1726131064940,-500.0,0.00018082,2]
[337818566,1726131064952,-309.01,0.00018082,2]
[337818567,1726131064963,-500.0,0.00018082,2]
[337818568,1726131064973,-151.0,0.00018082,2]
[337818569,1726131064984,-151.0,0.00018082,2]
[337818570,1726131064994,-151.0,0.00018082,2]
[337818571,1726131065135,-427.74731696,0.00018082,2]
[337818572,1726131065146,-228.28,0.00018082,2]
[337818573,1726131065157,-614.29,0.00018082,2]
[337818574,1726131065166,-249.05061794,0.00018082,2]
[337818575,1726131065178,-536.87,0.00018082,2]
[337818576,1726131065187,-500.0,0.00018082,2]
[337818577,1726131065197,-817.17,0.00018082,2]
[337818578,1726131065206,-500.0,0.00018082,2]
[337818579,1726131065216,-500.0,0.00018082,2]
[337818580,1726131065226,-500.0,0.00018082,2]
[337818581,1726131065236,-617.64,0.00018082,2]
[337818582,1726131065245,-1279.9,0.00018082,2]
[337818583,1726131065254,-500.0,0.00018082,2]
[337818584,1726131065267,-793.33,0.00018082,2]
[337818585,1726131065278,-500.0,0.00018082,2]
[337818586,1726131065288,-500.0,0.00018082,2]
[337818587,1726131065297,-500.0,0.00018082,2]
[337818588,1726131065307,-500.0,0.00018082,2]
[337818589,1726131065317,-500.0,0.00018082,2]
[337818590,1726131065327,-500.0,0.00018082,2]
[337818591,1726131065338,-500.0,0.00018082,2]
[337818592,1726131065348,-500.0,0.00018082,2]
[337818593,1726131065358,-599.07,0.00018082,2]
[337818594,1726131065369,-151.0,0.00018082,2]
[337818595,1726131065379,-594.71,0.00018082,2]
[337818596,1726131065389,-500.0,0.00018082,2]
[337818597,1726131065400,-745.01,0.00018082,2]
[337818598,1726131065410,-580.85,0.00018082,2]
[337818599,1726131065421,-151.0,0.00018082,2]
[337818600,1726131065432,-601.07,0.00018082,2]
[337818601,1726131065442,-779.69,0.00018082,2]
[337818602,1726131065452,-500.0,0.00018082,2]
[337818603,1726131065462,-151.0,0.00018082,2]
[337818604,1726131065471,-506.14,0.00018082,2]
[337818605,1726131065480,-151.0,0.00018082,2]
[337818606,1726131065490,-151.0,0.00018082,2]
[337818607,1726131065501,-500.0,0.00018082,2]
[337818608,1726131065511,-635.867684,0.00018082,2]
[337818609,1726131065521,-500.0,0.00018082,2]
[337818610,1726131065530,-635.867684,0.00018082,2]
[337818611,1726131065539,-1433.25141,0.00018082,2]
[337818612,1726131065548,-1116.841641,0.00018082,2]
[337818613,1726131065558,-1116.841641,0.00018082,2]
[337818614,1726131065567,-151.0,0.00018082,2]
[337818615,1726131065576,-151.0,0.00018082,2]
[337818616,1726131065585,-151.0,0.00018082,2]
[337818617,1726131065595,-1106.33,0.00018082,2]
[337818618,1726131065604,-500.0,0.00018082,2]
[337818619,1726131065613,-500.0,0.00018082,2]
[337818620,1726131065622,-1034.906807,0.00018082,2]
[337818621,1726131065632,-1034.906807,0.00018082,2]
[337818622,1726131065644,-500.0,0.00018082,2]
[337818623,1726131065655,-500.0,0.00018082,2]
[337818624,1726131065665,-500.0,0.00018082,2]
[337818625,1726131065674,-500.0,0.00018082,2]
[337818626,1726131065684,-500.0,0.00018082,2]
[337818627,1726131065693,-500.0,0.00018082,2]
[337818628,1726131065703,-760.99,0.00018082,2]
[337818629,1726131065712,-762.35,0.00018082,2]
[337818630,1726131065721,-738.28,0.00018082,2]
[337818631,1726131065731,-500.0,0.00018082,2]
[337818632,1726131065741,-500.0,0.00018082,2]
[337818633,1726131065750,-500.0,0.00018082,2]
[337818634,1726131065759,-7681.4,0.00018082,2]
[337818635,1726131065769,-613.21,0.00018082,2]
[337818636,1726131065778,-500.0,0.00018082,2]
[337818637,1726131065787,-641.6,0.00018082,2]
[337818638,1726131065797,-500.0,0.00018082,2]
[337818639,1726131065807,-500.0,0.00018082,2]
[337818640,1726131065817,-500.0,0.00018082,2]
[337818641,1726131065826,-500.0,0.00018082,2]
[337818642,1726131065836,-715.52,0.00018082,2]
[337818643,1726131065846,-500.0,0.00018082,2]
[337818644,1726131065855,-582.64,0.00018082,2]
[337818645,1726131065866,-559.53,0.00018082,2]
[337818646,1726131065875,-592.34,0.00018082,2]
[337818647,1726131065884,-603.556849,0.00018082,2]
[337818648,1726131065894,-470.00633216,0.00018082,2]
[337818649,1726131065903,-603.556849,0.00018082,2]
[337818650,1726131065913,-500.0,0.00018082,2]
[337818651,1726131065923,-500.0,0.00018082,2]
[337818652,1726131065932,-629.47,0.00018082,2]
[337818653,1726131065941,-500.0,0.00018082,2]
[337818654,1726131065951,-151.0,0.00018082,2]
[337818655,1726131065960,-500.0,0.00018082,2]
[337818656,1726131065969,-500.0,0.00018082,2]
[337818657,1726131065978,-500.0,0.00018082,2]
[337818658,1726131065987,-500.0,0.00018082,2]
[337818659,1726131065996,-500.0,0.00018082,2]
[337818660,1726131066005,-500.0,0.00018082,2]
[337818661,1726131066025,-500.0,0.00018082,2]
[337818662,1726131066034,-500.0,0.00018082,2]
[337818663,1726131066043,-500.0,0.00018082,2]
[337818664,1726131066052,-500.0,0.00018082,2]
[337818665,1726131066061,-653.34,0.00018082,2]
[337818666,1726131066071,-675.38,0.00018082,2]
[337818667,1726131066079,-500.0,0.00018082,2]
[337818668,1726131066089,-807.1,0.00018082,2]
[337818669,1726131066101,-787.31,0.00018082,2]
[337818670,1726131066111,-500.0,0.00018082,2]
[337818671,1726131066120,-500.0,0.00018082,2]
[337818672,1726131066128,-500.0,0.00018082,2]
[337818673,1726131066137,-155.79203219,0.00018082,2]
[337818674,1726131066146,-1393.23,0.00018082,2]
[337818675,1726131066155,-500.0,0.00018082,2]
[337818676,1726131066164,-734.5,0.00018082,2]
[337818677,1726131066174,-541.1,0.00018082,2]
[337818678,1726131066183,-500.0,0.00018082,2]
[337818679,1726131066193,-719.64,0.00018082,2]
[337818680,1726131066202,-690.44,0.00018082,2]
[337818681,1726131066211,-862.19,0.00018082,2]
[337818682,1726131066221,-261.18,0.00018082,2]
[337818683,1726131066230,-516.92,0.00018082,2]
[337818684,1726131066239,-720.11,0.00018082,2]
[337818685,1726131066249,-4891.15,0.00018082,2]
[337818686,1726131066258,-751.57,0.00018082,2]
[337818687,1726131066270,-686.93,0.00018082,2]
[337818688,1726131066279,-1101.98,0.00018082,2]
[337818689,1726131066288,-500.0,0.00018082,2]
[337818690,1726131066298,-500.0,0.00018082,2]
[337818691,1726131066307,-500.0,0.00018082,2]
[337818692,1726131066317,-610.17,0.00018082,2]
[337818693,1726131066326,-670.2,0.00018082,2]
[337818694,1726131066336,-1053.58,0.00018082,2]
[337818695,1726131066345,-3990.07,0.00018082,2]
[337818696,1726131066355,-8996.43,0.00018082,2]
[337818697,1726131066365,-500.0,0.00018082,2]
[337818698,1726131066374,-1532.76,0.00018082,2]
[337818699,1726131066383,-551.17,0.00018082,2]
[337818700,1726131066392,-1009.79,0.00018082,2]
[337818701,1726131066402,-500.0,0.00018082,2]
[337818702,1726131066412,-500.0,0.00018082,2]
[337818703,1726131066421,-513.87,0.00018082,2]
[337818704,1726131066430,-800.64,0.00018082,2]
[337818705,1726131066440,-935.62,0.00018082,2]
[337818706,1726131066449,-500.0,0.00018082,2]
[337818707,1726131066459,-500.0,0.00018082,2]
[337818708,1726131066468,-659.81,0.00018082,2]
[337818709,1726131066478,-462.5332591,0.00018082,2]
[337818710,1726131066488,-544.53189302,0.00018082,2]
[337818711,1726131066498,-500.0,0.00018082,2]
[337818712,1726131066508,-500.0,0.00018082,2]
[337818713,1726131066518,-500.0,0.00018082,2]
[337818714,1726131066529,-500.0,0.00018082,2]
[337818715,1726131066538,-618.89,0.00018082,2]
[337818716,1726131066549,-153.0,0.00018082,2]
[337818717,1726131066559,-153.0,0.00018082,2]
[337818718,1726131066568,-153.0,0.00018082,2]
[337818719,1726131066579,-153.0,0.00018082,2]
[337818720,1726131066589,-337.7365135,0.00018082,2]
[337818721,1726131066598,-14607.27198169,0.00018256,2]
[337818722,1726131066608,-302.45631,0.00018342,2]
[337818723,1726131066618,-302.45631,0.00018342,2]
[337818724,1726131066627,-697.699414,0.00018342,2]
[337818725,1726131066637,-697.699414,0.00018342,2]
[337818726,1726131066647,-151.0,0.00018342,2]
[337818727,1726131066657,-151.0,0.00018342,2]
[337818728,1726131066666,-151.0,0.00018342,2]
[337818729,1726131066676,-434.0250213,0.00018342,2]
[337818730,1726131066687,-1000.0,0.00018342,2]
[337818731,1726131066697,-1000.0,0.00018342,2]
[337818732,1726131066706,-40.85891816,0.00018356,2]
[337818733,1726131066911,-808.55108184,0.00018356,2]
[337818734,1726131066921,-154.359981,0.00018356,2]
[337818735,1726131066931,-500.0,0.00018356,2]
[337818736,1726131066940,-500.0,0.00018356,2]
[337818737,1726131066950,-500.0,0.00018356,2]
[337818738,1726131066960,-603.651484,0.00018356,2]
[337818739,1726131066969,-603.651484,0.00018356,2]
[337818740,1726131066979,-614.29,0.00018356,2]
[337818741,1726131066988,-536.87,0.00018356,2]
[337818742,1726131066998,-500.0,0.00018356,2]
[337818743,1726131067009,-817.17,0.00018356,2]
[337818744,1726131067020,-500.0,0.00018356,2]
[337818745,1726131067029,-500.0,0.00018356,2]
[337818746,1726131067038,-500.0,0.00018356,2]
[337818747,1726131067048,-617.64,0.00018356,2]
[337818748,1726131067058,-1279.9,0.00018356,2]
[337818749,1726131067069,-500.0,0.00018356,2]
[337818750,1726131067079,-793.33,0.00018356,2]
[337818751,1726131067088,-506.309595,0.00018356,2]
[337818752,1726131067099,-506.309595,0.00018356,2]
[337818753,1726131067115,-500.0,0.00018356,2]
[337818754,1726131067125,-500.0,0.00018356,2]
[337818755,1726131067135,-500.0,0.00018356,2]
[337818756,1726131067146,-500.0,0.00018356,2]
[337818757,1726131067157,-255.30822554,0.00018356,2]
[337818758,1726131067167,-615.172887,0.00018356,2]
[337818759,1726131067178,-151.0,0.00018356,2]
[337818760,1726131067190,-500.0,0.00018356,2]
[337818761,1726131067201,-615.172887,0.00018356,2]
[337818762,1726131067212,-151.0,0.00018356,2]
[337818763,1726131067223,-500.0,0.00018356,2]
[337818764,1726131067233,-221.18879957,0.00018356,2]
[337818765,1726131067244,-599.07,0.00018356,2]
[337818766,1726131067255,-594.71,0.00018356,2]
[337818767,1726131067266,-500.0,0.00018356,2]
[337818768,1726131067276,-745.01,0.00018356,2]
[337818769,1726131067286,-580.85,0.00018356,2]
[337818770,1726131067296,-601.07,0.00018356,2]
[337818771,1726131067306,-779.69,0.00018356,2]
[337818772,1726131067316,-500.0,0.00018356,2]
[337818773,1726131067326,-379.306066,0.00018356,2]
[337818774,1726131067335,-379.306066,0.00018356,2]
[337818775,1726131067345,-506.14,0.00018356,2]
[337818776,1726131067355,-559.287003,0.00018356,2]
[337818777,1726131067364,-500.0,0.00018356,2]
[337818778,1726131067374,-559.287003,0.00018356,2]
[337818779,1726131067383,-231.83576933,0.00018356,2]
[337818780,1726131067393,-1106.33,0.00018356,2]
[337818781,1726131067403,-500.0,0.00018356,2]
[337818782,1726131067413,-500.0,0.00018356,2]
[337818783,1726131067423,-500.0,0.00018356,2]
[337818784,1726131067433,-175.206233,0.00018356,2]
[337818785,1726131067443,-285.01130144,0.00018356,2]
[337818786,1726131067452,-408.480547,0.00018356,2]
[337818787,1726131067466,-195.5,0.00018356,2]
[337818788,1726131067476,-408.480547,0.00018356,2]
[337818789,1726131067485,-843.199947,0.00018356,2]
[337818790,1726131067495,-843.199947,0.00018356,2]
[337818791,1726131067504,-151.0,0.00018356,2]
[337818792,1726131067514,-500.0,0.00018356,2]
[337818793,1726131067523,-500.0,0.00018356,2]
[337818794,1726131067532,-500.0,0.00018356,2]
[337818795,1726131067541,-151.0,0.00018356,2]
[337818796,1726131067551,-760.99,0.00018356,2]
[337818797,1726131067561,-762.35,0.00018356,2]
[337818798,1726131067570,-738.28,0.00018356,2]
[337818799,1726131067580,-500.0,0.00018356,2]
[337818800,1726131067590,-191.48983369,0.00018356,2]
[337818801,1726131067599,-500.0,0.00018356,2]
[337818802,1726131067612,-7681.4,0.00018356,2]
[337818803,1726131067621,-613.21,0.00018356,2]
[337818804,1726131067630,-500.0,0.00018356,2]
[337818805,1726131067640,-641.6,0.00018356,2]
[337818806,1726131067649,-500.0,0.00018356,2]